fUSD/lending_fUSD_20250330
["ID","MTS","AMOUNT","RATE_DAILY","PERIOD"]
[356863596,1743342649234,-2273.84,0.00054794,120]
[356863597,1743342649244,-500.0,0.00054794,120]
[356863598,1743342649253,-2273.84,0.00054794,120]
[356863599,1743342649263,-2273.84,0.00054794,120]
[356863600,1743342649272,-500.0,0.00054794,120]
[356863601,1743342649281,-2273.84,0.00054794,120]
[356863602,1743342649291,-2273.84,0.00054794,120]
[356863603,1743342649301,-2273.84,0.00054794,120]
[356863604,1743342649310,-500.0,0.00054794,120]
[356863605,1743342649319,-2273.84,0.00054794,120]
[356863606,1743342649329,-2273.84,0.00054794,120]
[356863607,1743342649339,-2273.84,0.00054794,120]
[356863608,1743342649348,-2273.84,0.00054794,120]
[356863609,1743342649357,-2273.84,0.00054794,120]
[356863610,1743342649367,-2273.84,0.00054794,120]
[356863611,1743342649376,-2273.84,0.00054794,120]
[356863612,1743342649386,-2273.84,0.00054794,120]
[356863613,1743342649395,-2273.84,0.00054794,120]
[356863614,1743342649405,-2274.0,0.00054794,120]
[356863615,1743342649415,-515.86296565,0.00054794,120]
[356863616,1743342649425,-500.0,0.00054794,120]
[356863617,1743342649435,-500.0,0.00054794,120]
[356863618,1743342649445,-500.0,0.00054794,120]
[356863619,1743342649455,-500.0,0.00054794,120]
[356863620,1743342649465,-258.76403259,0.00054794,120]
[356863621,1743342649475,-500.0,0.00054794,120]
[356863622,1743342649484,-500.0,0.00054794,120]
[356863623,1743342649494,-500.0,0.00054794,120]
[356863624,1743342649503,-500.0,0.00054794,120]
[356863625,1743342649513,-500.0,0.00054794,120]
[356863626,1743342649522,-576.86377112,0.00054794,120]
[356863627,1743342649532,-512.18725202,0.00054794,120]
[356863628,1743342649541,-500.0,0.00054794,120]
[356863629,1743342649551,-500.0,0.00054794,120]
[356863630,1743342649560,-500.0,0.00054794,120]
[356863631,1743342649569,-500.0,0.00054794,120]
[356863632,1743342649579,-546.63333696,0.00054794,120]
[356863633,1743342649588,-510.39238536,0.00054794,120]
[356863634,1743342649597,-500.0,0.00054794,120]
[356863635,1743342649607,-500.0,0.00054794,120]
[356863636,1743342649616,-500.0,0.00054794,120]
[356863637,1743342649626,-512.45787444,0.00054794,120]
[356863638,1743342649635,-522.8683945,0.00054794,120]
[356863639,1743342649645,-310.4163728,0.00054794,120]
[356863640,1743342649654,-500.0,0.00054794,120]
[356863641,1743342649664,-500.0,0.00054794,120]
[356863642,1743342649673,-500.0,0.00054794,120]
[356863643,1743342649683,-500.0,0.00054794,120]
[356863644,1743342649692,-500.0,0.00054794,120]
[356863645,1743342649702,-500.0,0.00054794,120]
[356863646,1743342649711,-674.25,0.00054794,120]
[356863647,1743342649725,-566.52716624,0.00054794,120]
[356863648,1743342649735,-500.0,0.00054794,120]
[356863649,1743342649746,-500.0,0.00054794,120]
[356863650,1743342649755,-500.0,0.00054794,120]
[356863651,1743342649766,-500.0,0.00054794,120]
[356863652,1743342649776,-500.0,0.00054794,120]
[356863653,1743342649786,-500.0,0.00054794,120]
[356863654,1743342649796,-500.0,0.00054794,120]
[356863655,1743342649807,-500.0,0.00054794,120]
[356863656,1743342649817,-500.0,0.00054794,120]
[356863657,1743342649826,-500.00334904,0.00054794,120]
[356863658,1743342649835,-500.0,0.00054794,120]
[356863659,1743342649845,-500.0,0.00054794,120]
[356863660,1743342649855,-504.44738307,0.00054794,120]
[356863661,1743342649864,-500.0,0.00054794,120]
[356863662,1743342649873,-504.28226715,0.00054794,120]
[356863663,1743342649883,-500.0,0.00054794,120]
[356863664,1743342649892,-500.0,0.00054794,120]
[356863665,1743342649902,-505.34679506,0.00054794,120]
[356863666,1743342649911,-500.0,0.00054794,120]
[356863667,1743342649920,-500.0,0.00054794,120]
[356863668,1743342649930,-500.0,0.00054794,120]
[356863669,1743342649939,-520.92251748,0.00054794,120]
[356863670,1743342649950,-500.0,0.00054794,120]
[356863671,1743342649960,-524.52761249,0.00054794,120]
[356863672,1743342649969,-500.0,0.00054794,2]
[356863673,1743342649979,-500.0,0.00054794,120]
[356863674,1743342649988,-500.0,0.00054794,120]
[356863675,1743342649998,-500.0,0.00054794,120]
[356863676,1743342650007,-500.0,0.00054794,120]
[356863677,1743342650017,-500.0,0.00054794,120]
[356863678,1743342650026,-500.0,0.00054794,120]
[356863679,1743342650035,-500.0,0.00054794,120]
[356863680,1743342650044,-509.92985388,0.00054794,120]
[356863681,1743342650054,-500.0,0.00054794,120]
[356863682,1743342650064,-500.0,0.00054794,120]
[356863683,1743342650074,-513.63714195,0.00054794,120]
[356863684,1743342650085,-2716.43,0.00054794,7]
[356863685,1743342650095,-500.0,0.00054794,120]
[356863686,1743342650104,-500.0,0.00054794,120]
[356863687,1743342650114,-500.0,0.00054794,120]
[356863688,1743342650124,-500.0,0.00054794,120]
[356863689,1743342650134,-597.82072445,0.00054794,120]
[356863690,1743342650145,-500.0,0.00054794,120]
[356863691,1743342650155,-500.0,0.00054794,120]
[356863692,1743342650165,-500.0,0.00054794,120]
[356863693,1743342650174,-500.0,0.00054794,120]
[356863694,1743342650184,-518.88,0.00054794,120]
[356863695,1743342650193,-500.0,0.00054794,120]
[356863696,1743342650203,-500.0,0.00054794,120]
[356863697,1743342650212,-507.1109584,0.00054794,120]
[356863698,1743342650221,-500.0,0.00054794,120]
[356863699,1743342650230,-500.0,0.00054794,120]
[356863700,1743342650240,-513.89952991,0.00054794,120]
[356863701,1743342650249,-645.24,0.00054794,120]
[356863702,1743342650259,-558.9706836,0.00054794,120]
[356863703,1743342650268,-500.0,0.00054794,120]
[356863704,1743342650278,-500.0,0.00054794,120]
[356863705,1743342650288,-741.57811656,0.00054794,120]
[356863706,1743342650298,-500.0,0.00054794,120]
[356863707,1743342650308,-542.0241744,0.00054794,120]
[356863708,1743342650317,-500.0,0.00054794,120]
[356863709,1743342650327,-580.4453446,0.00054794,120]
[356863710,1743342650336,-500.0,0.00054794,120]
[356863711,1743342650347,-500.0,0.00054794,120]
[356863712,1743342650357,-500.0,0.00054794,120]
[356863713,1743342650367,-500.0,0.00054794,120]
[356863714,1743342650377,-500.0,0.00054794,120]
[356863715,1743342650387,-500.0,0.00054794,120]
[356863716,1743342650397,-500.0,0.00054794,120]
[356863717,1743342650407,-500.0,0.00054794,120]
[356863718,1743342650417,-561.14689758,0.00054794,120]
[356863719,1743342650427,-500.0,0.00054794,120]
[356863720,1743342650438,-500.0,0.00054794,120]
[356863721,1743342650448,-500.0,0.00054794,120]
[356863722,1743342650459,-500.0,0.00054794,120]
[356863723,1743342650468,-500.0,0.00054794,120]
[356863724,1743342650478,-500.0,0.00054794,120]
[356863725,1743342650487,-500.0,0.00054794,120]
[356863726,1743342650496,-552.29744971,0.00054794,120]
[356863727,1743342650595,-500.0,0.00054794,120]
[356863728,1743342650605,-500.0,0.00054794,120]
[356863729,1743342650614,-500.0,0.00054794,120]
[356863730,1743342650623,-500.0,0.00054794,120]
[356863731,1743342650633,-500.0,0.00054794,60]
[356863732,1743342650643,-500.0,0.00054794,120]
[356863733,1743342650652,-514.85467777,0.00054794,120]
[356863734,1743342650662,-500.0,0.00054794,120]
[356863735,1743342650672,-500.0,0.00054794,120]
[356863736,1743342650681,-514.07257828,0.00054794,120]
[356863737,1743342650691,-500.0,0.00054794,120]
[356863738,1743342650701,-500.0,0.00054794,120]
[356863739,1743342650710,-502.16812432,0.00054794,120]
[356863740,1743342650721,-500.0,0.00054794,120]
[356863741,1743342650734,-505.97892155,0.00054794,120]
[356863742,1743342650743,-500.0,0.00054794,120]
[356863743,1743342650752,-509.70132287,0.00054794,120]
[356863744,1743342650761,-500.0,0.00054794,120]
[356863745,1743342650771,-514.3881096,0.00054794,120]
[356863746,1743342650780,-500.98028666,0.00054794,2]
[356863747,1743342650789,-500.0,0.00054794,120]
[356863748,1743342650800,-500.0,0.00054794,120]
[356863749,1743342650809,-521.41689357,0.00054794,120]
[356863750,1743342650819,-500.0,0.00054794,120]
[356863751,1743342650828,-500.0,0.00054794,120]
[356863752,1743342650838,-300.0,0.00054794,120]
[356863753,1743342650847,-518.47193487,0.00054794,120]
[356863754,1743342650857,-500.0,0.00054794,120]
[356863755,1743342650866,-500.0,0.00054794,120]
[356863756,1743342650875,-210.4355736,0.00054794,120]
[356863757,1743342650884,-513.95620819,0.00054794,120]
[356863758,1743342650894,-500.0,0.00054794,120]
[356863759,1743342650903,-500.0,0.00054794,120]
[356863760,1743342650913,-500.0,0.00054794,120]
[356863761,1743342650922,-516.01753967,0.00054794,120]
[356863762,1743342650932,-500.0,0.00054794,120]
[356863763,1743342650941,-513.33125392,0.00054794,120]
[356863764,1743342650951,-500.0,0.00054794,120]
[356863765,1743342650960,-519.53826101,0.00054794,120]
[356863766,1743342650970,-508.36818623,0.00054794,120]
[356863767,1743342650979,-610.43868103,0.00054794,120]
[356863768,1743342650989,-500.0,0.00054794,120]
[356863769,1743342650998,-529.92269691,0.00054794,120]
[356863770,1743342651008,-500.0,0.00054794,120]
[356863771,1743342651018,-507.03516761,0.00054794,120]
[356863772,1743342651028,-500.0,0.00054794,120]
[356863773,1743342651037,-500.0,0.00054794,120]
[356863774,1743342651047,-516.81456012,0.00054794,120]
[356863775,1743342651056,-500.0,0.00054794,120]
[356863776,1743342651066,-506.78207299,0.00054794,120]
[356863777,1743342651075,-500.0,0.00054794,120]
[356863778,1743342651084,-528.88996212,0.00054794,120]
[356863779,1743342651094,-500.0,0.00054794,120]
[356863780,1743342651103,-500.0,0.00054794,120]
[356863781,1743342651113,-500.0,0.00054794,120]
[356863782,1743342651122,-516.3378646,0.00054794,120]
[356863783,1743342651132,-500.0,0.00054794,120]
[356863784,1743342651141,-500.0,0.00054794,120]
[356863785,1743342651151,-500.0,0.00054794,120]
[356863786,1743342651160,-511.84157158,0.00054794,120]
[356863787,1743342651170,-500.0,0.00054794,120]
[356863788,1743342651179,-500.0,0.00054794,120]
[356863789,1743342651190,-500.0,0.00054794,120]
[356863790,1743342651199,-500.0,0.00054794,120]
[356863791,1743342651209,-500.0,0.00054794,120]
[356863792,1743342651218,-500.0,0.00054794,120]
[356863793,1743342651228,-296.3933573,0.00054794,120]
[356863794,1743342651237,-500.0,0.00054794,120]
[356863795,1743342651246,-500.0,0.00054794,120]
[356863796,1743342651256,-522.35545958,0.00054794,120]
[356863797,1743342651266,-500.0,0.00054794,120]
[356863798,1743342651276,-500.0,0.00054794,120]
[356863799,1743342651285,-500.0,0.00054794,120]
[356863800,1743342651295,-542.62534664,0.00054794,120]
[356863801,1743342651305,-500.0,0.00054794,120]
[356863802,1743342651314,-519.37151136,0.00054794,120]
[356863803,1743342651324,-500.0,0.00054794,30]
[356863804,1743342651334,-500.0,0.00054794,120]
[356863805,1743342651343,-522.79273664,0.00054794,120]
[356863806,1743342651352,-500.0,0.00054794,120]
[356863807,1743342651362,-293.42281499,0.00054794,120]
[356863808,1743342651371,-439.34415987,0.00054794,120]
[356863809,1743342651380,-500.0,0.00054794,120]
[356863810,1743342651390,-500.0,0.00054794,120]
[356863811,1743342651400,-500.0,0.00054794,120]
[356863812,1743342651409,-500.0,0.00054794,120]
[356863813,1743342651419,-500.0,0.00054794,120]
[356863814,1743342651428,-500.0,0.00054794,120]
[356863815,1743342651438,-500.0,0.00054794,120]
[356863816,1743342651448,-548.76107166,0.00054794,120]
[356863817,1743342651458,-500.0,0.00054794,120]
[356863818,1743342651467,-500.0,0.00054794,120]
[356863819,1743342651476,-500.0,0.00054794,120]
[356863820,1743342651486,-518.2241881,0.00054794,120]
[356863821,1743342651495,-500.0,0.00054794,120]
[356863822,1743342651505,-500.0,0.00054794,120]
[356863823,1743342651514,-272.98342565,0.00054794,120]
[356863824,1743342651523,-500.0,0.00054794,120]
[356863825,1743342651532,-500.0,0.00054794,120]
[356863826,1743342651542,-513.80349015,0.00054794,60]
[356863827,1743342651551,-500.0,0.00054794,120]
[356863828,1743342651560,-500.0,0.00054794,120]
[356863829,1743342651570,-303.72201746,0.00054794,120]
[356863830,1743342651579,-514.07048951,0.00054794,120]
[356863831,1743342651589,-500.0,0.00054794,120]
[356863832,1743342651598,-500.0,0.00054794,120]
[356863833,1743342651608,-500.0,0.00054794,120]
[356863834,1743342651617,-514.7500801,0.00054794,120]
[356863835,1743342651626,-500.0,0.00054794,120]
[356863836,1743342651635,-1350.06,0.00054794,120]
[356863837,1743342651644,-500.0,0.00054794,120]
[356863838,1743342651654,-515.25019747,0.00054794,120]
[356863839,1743342651663,-500.0,0.00054794,120]
[356863840,1743342651673,-500.0,0.00054794,120]
[356863841,1743342651683,-500.0,0.00054794,120]
[356863842,1743342651692,-500.0,0.00054794,120]
[356863843,1743342651702,-553.843683,0.00054794,120]
[356863844,1743342651711,-500.0,0.00054794,120]
[356863845,1743342651721,-500.0,0.00054794,120]
[356863846,1743342651734,-500.0,0.00054794,120]
[356863847,1743342651744,-500.0,0.00054794,120]
[356863848,1743342651753,-500.0,0.00054794,120]
[356863849,1743342651763,-500.0,0.00054794,120]
[356863850,1743342651773,-500.0,0.00054794,120]
[356863851,1743342651783,-500.0,0.00054794,120]
[356863852,1743342651792,-518.3563437,0.00054794,88]
[356863853,1743342651803,-500.0,0.00054794,120]
[356863854,1743342651812,-500.0,0.00054794,120]
[356863855,1743342651902,-500.0,0.00054794,120]
[356863856,1743342651912,-453.02111376,0.00054794,120]
[356863857,1743342651922,-532.33025033,0.00054794,120]
[356863858,1743342651931,-500.0,0.00054794,120]
[356863859,1743342651941,-500.0,0.00054794,120]
[356863860,1743342651952,-500.0,0.00054794,120]
[356863861,1743342651961,-500.0,0.00054794,120]
[356863862,1743342651971,-500.0,0.00054794,120]
[356863863,1743342651980,-500.0,0.00054794,120]
[356863864,1743342651989,-500.0,0.00054794,120]
[356863865,1743342651999,-1066.61,0.00054794,120]
[356863866,1743342652008,-500.0,0.00054794,120]
[356863867,1743342652017,-500.0,0.00054794,120]
[356863868,1743342652027,-500.0,0.00054794,120]
[356863869,1743342652036,-500.0,0.00054794,120]
[356863870,1743342652046,-500.0,0.00054794,120]
[356863871,1743342652055,-500.0,0.00054794,120]
[356863872,1743342652064,-398.97028255,0.00054794,120]
[356863873,1743342652074,-500.0,0.00054794,120]
[356863874,1743342652084,-500.0,0.00054794,120]
[356863875,1743342652093,-500.0,0.00054794,120]
[356863876,1743342652102,-500.0,0.00054794,120]
[356863877,1743342652112,-500.0,0.00054794,120]
[356863878,1743342652122,-500.0,0.00054794,120]
[356863879,1743342652131,-500.0,0.00054794,120]
[356863880,1743342652141,-500.0,0.00054794,120]
[356863881,1743342652151,-434.1577334,0.00054794,120]
[356863882,1743342652160,-500.0,0.00054794,120]
[356863883,1743342652170,-500.0,0.00054794,120]
[356863884,1743342652180,-500.0,0.00054794,120]
[356863885,1743342652189,-500.0,0.00054794,120]
[356863886,1743342652199,-1301.03,0.00054794,120]
[356863887,1743342652208,-500.0,0.00054794,120]
[356863888,1743342652217,-645.31110578,0.00054794,120]
[356863889,1743342652227,-500.0,0.00054794,120]
[356863890,1743342652236,-500.0,0.00054794,120]
[356863891,1743342652245,-500.0,0.00054794,120]
[356863892,1743342652255,-589.12657152,0.00054794,120]
[356863893,1743342652264,-500.0,0.00054794,120]
[356863894,1743342652273,-500.0,0.00054794,120]
[356863895,1743342652283,-500.0,0.00054794,120]
[356863896,1743342652292,-500.0,0.00054794,120]
[356863897,1743342652302,-518.67252357,0.00054794,120]
[356863898,1743342652311,-500.0,0.00054794,120]
[356863899,1743342652320,-500.0,0.00054794,120]
[356863900,1743342652330,-500.0,0.00054794,120]
[356863901,1743342652339,-583.43514136,0.00054794,120]
[356863902,1743342652349,-516.53702121,0.00054794,120]
[356863903,1743342652359,-500.0,0.00054794,120]
[356863904,1743342652368,-500.0,0.00054794,120]
[356863905,1743342652378,-500.0,0.00054794,120]
[356863906,1743342652387,-507.44750885,0.00054794,120]
[356863907,1743342652397,-500.0,0.00054794,120]
[356863908,1743342652406,-1000.0,0.00054794,28]
[356863909,1743342652416,-500.0,0.00054794,120]
[356863910,1743342652426,-500.0,0.00054794,120]
[356863911,1743342652435,-500.0,0.00054794,120]
[356863912,1743342652445,-500.0,0.00054794,120]
[356863913,1743342652455,-198.43681554,0.00054794,120]
[356863914,1743342652464,-500.0,0.00054794,120]
[356863915,1743342652481,-500.0,0.00054794,120]
[356863916,1743342652497,-500.0,0.00054794,120]
[356863917,1743342652516,-500.0,0.00054794,120]
[356863918,1743342652534,-500.0,0.00054794,120]
[356863919,1743342652549,-500.0,0.00054794,120]
[356863920,1743342652568,-539.49,0.00054794,120]
[356863921,1743342652587,-723.24,0.00054794,120]
[356863922,1743342652604,-3008.59,0.00054794,120]
[356863923,1743342652621,-510.62107072,0.00054794,120]
[356863924,1743342652639,-1000.0,0.00054794,120]
[356863925,1743342652657,-504.76947559,0.00054794,120]
[356863926,1743342652672,-500.0,0.00054794,120]
[356863927,1743342652691,-525.08671969,0.00054794,120]
[356863928,1743342652705,-500.0,0.00054794,120]
[356863929,1743342652723,-500.0,0.00054794,120]
[356863930,1743342652737,-500.0,0.00054794,120]
[356863931,1743342652752,-515.54092711,0.00054794,120]
[356863932,1743342652767,-500.0,0.00054794,120]
[356863933,1743342652782,-500.0,0.00054794,120]
[356863934,1743342652796,-500.0,0.00054794,120]
[356863935,1743342652812,-500.0,0.00054794,120]
[356863936,1743342652827,-511.61038237,0.00054794,120]
[356863937,1743342652842,-500.0,0.00054794,120]
[356863938,1743342652857,-500.0,0.00054794,120]
[356863939,1743342652872,-685.9,0.00054794,120]
[356863940,1743342652886,-500.0,0.00054794,120]
[356863941,1743342652901,-500.0,0.00054794,120]
[356863942,1743342652915,-500.0,0.00054794,120]
[356863943,1743342652930,-500.0,0.00054794,120]
[356863944,1743342652944,-500.0,0.00054794,120]
[356863945,1743342652958,-500.0,0.00054794,120]
[356863946,1743342652973,-500.0,0.00054794,120]
[356863947,1743342652988,-500.0,0.00054794,120]
[356863948,1743342653003,-500.0,0.00054794,120]
[356863949,1743342653017,-500.0,0.00054794,120]
[356863950,1743342653032,-523.29993026,0.00054794,120]
[356863951,1743342653047,-500.0,0.00054794,120]
[356863952,1743342653062,-500.0,0.00054794,120]
[356863953,1743342653077,-500.0,0.00054794,120]
[356863954,1743342653092,-513.77302137,0.00054794,120]
[356863955,1743342653106,-500.0,0.00054794,120]
[356863956,1743342653121,-500.0,0.00054794,120]
[356863957,1743342653135,-500.0,0.00054794,12]
[356863958,1743342653150,-500.0,0.00054794,120]
[356863959,1743342653164,-542.30352299,0.00054794,120]
[356863960,1743342653178,-499.57057545,0.00054794,120]
[356863961,1743342653192,-535.1139495,0.00054794,120]
[356863962,1743342653207,-500.0,0.00054794,120]
[356863963,1743342653222,-522.07137923,0.00054794,120]
[356863964,1743342653236,-500.0,0.00054794,120]
[356863965,1743342653251,-500.0,0.00054794,120]
[356863966,1743342653266,-500.0,0.00054794,120]
[356863967,1743342653277,-517.61,0.00054794,120]
[356863968,1743342653287,-500.0,0.00054794,120]
[356863969,1743342653296,-500.0,0.00054794,120]
[356863970,1743342653305,-500.0,0.00054794,120]
[356863971,1743342653314,-500.0,0.00054794,120]
[356863972,1743342653323,-500.0,0.00054794,120]
[356863973,1743342653484,-500.0,0.00054794,120]
[356863974,1743342653507,-500.0,0.00054794,120]
[356863975,1743342653522,-500.0,0.00054794,120]
[356863976,1743342653531,-500.0,0.00054794,120]
[356863977,1743342653541,-500.0,0.00054794,120]
[356863978,1743342653550,-500.0,0.00054794,120]
[356863979,1743342653559,-500.0,0.00054794,120]
[356863980,1743342653569,-500.0,0.00054794,120]
[356863981,1743342653578,-500.0,0.00054794,120]
[356863982,1743342653587,-500.0,0.00054794,120]
[356863983,1743342653597,-522.76408195,0.00054794,120]
[356863984,1743342653606,-500.0,0.00054794,120]
[356863985,1743342653615,-500.0,0.00054794,120]
[356863986,1743342653624,-500.0,0.00054794,120]
[356863987,1743342653633,-500.0,0.00054794,120]
[356863988,1743342653642,-500.0,0.00054794,120]
[356863989,1743342653651,-500.0,0.00054794,120]
[356863990,1743342653660,-500.0,0.00054794,120]
[356863991,1743342653670,-500.0,0.00054794,120]
[356863992,1743342653679,-500.0,0.00054794,120]
[356863993,1743342653688,-1252.13,0.00054794,30]
[356863994,1743342653699,-500.0,0.00054794,120]
[356863995,1743342653708,-500.0,0.00054794,120]
[356863996,1743342653717,-500.0,0.00054794,120]
[356863997,1743342653730,-518.55036447,0.00054794,120]
[356863998,1743342653739,-500.0,0.00054794,120]
[356863999,1743342653748,-500.0,0.00054794,120]
[356864000,1743342653757,-500.0,0.00054794,120]
[356864001,1743342653767,-500.0,0.00054794,120]
[356864002,1743342653777,-500.0,0.00054794,120]
[356864003,1743342653786,-500.0,0.00054794,120]
[356864004,1743342653796,-500.0,0.00054794,120]
[356864005,1743342653806,-500.0,0.00054794,120]
[356864006,1743342653815,-500.0,0.00054794,120]
[356864007,1743342653824,-500.0,0.00054794,120]
[356864008,1743342653833,-224.672373,0.00054794,120]
[356864009,1743342654122,-275.327627,0.00054794,120]
[356864010,1743342654131,-515.88557977,0.00054794,120]
[356864011,1743342654140,-500.0,0.00054794,120]
[356864012,1743342654149,-523.00357023,0.00054794,120]
[356864013,1743342654158,-500.0,0.00054794,120]
[356864014,1743342654167,-500.0,0.00054794,120]
[356864015,1743342654176,-204.98211302,0.00054794,120]
[356864016,1743342654352,-150.49952974,0.000499,120]
[356864017,1743342654362,-150.0,0.00051998,120]
[356864018,1743342654371,-315.28870585,0.00054794,120]
[356864019,1743342654380,-292.75284511,0.00054794,120]
[356864020,1743342654391,-207.24715489,0.00054794,120]
[356864021,1743342654401,-141.55843663,0.00054794,120]
[356864022,1743342654412,-367.26874876,0.00054794,120]
[356864023,1743342654421,-283.84779346,0.00054794,120]
[356864024,1743342654432,-216.15220654,0.00054794,120]
[356864025,1743342654441,-500.0,0.00054794,120]
[356864026,1743342654451,-113.54779346,0.00054794,120]
[356864027,1743342654498,-497.13162989,0.00054794,120]
[356864028,1743342654507,-500.0,0.00054794,120]
[356864029,1743342654516,-504.97251546,0.00054794,120]
[356864030,1743342654525,-500.0,0.00054794,120]
[356864031,1743342654535,-411.92469732,0.00054794,120]
[356864032,1743342654544,-500.0,0.00054794,120]
[356864033,1743342654553,-500.0,0.00054794,120]
[356864034,1743342654562,-500.0,0.00054794,120]
[356864035,1743342654571,-375.32770688,0.00054794,120]
[356864036,1743342654583,-124.67229312,0.00054794,120]
[356864037,1743342654592,-500.0,0.00054794,120]
[356864038,1743342654602,-76.11338704,0.00054794,120]
[356864108,1743343666491,-250.0,0.00025,2]
[356864109,1743343666514,-251.4,0.00026849,2]
[356864110,1743343666539,-300.0,0.00027,2]
[356864111,1743343666562,-350.0,0.00029,2]
[356864112,1743343666585,-400.0,0.00031,2]
[356864113,1743343666607,-251.4,0.00032646,2]
[356864114,1743343666633,-220.72913058,0.000329,2]
[356864115,1743343666656,-450.0,0.00033,2]
[356864116,1743343666678,-500.0,0.00035,2]
[356864117,1743343666701,-550.0,0.00037,2]
[356864118,1743343666724,-251.4,0.00038443,2]
[356864119,1743343666746,-600.0,0.00039,2]
[356864120,1743343666768,-650.0,0.00041,2]
[356864121,1743343666790,-176.0,0.00041,14]
[356864122,1743343666815,-700.0,0.00043,2]
[356864123,1743343666838,-176.0,0.00043151,90]
[356864124,1743343666862,-150.0,0.00043999,120]
[356864125,1743343666885,-150.0,0.00044,57]
[356864126,1743343666908,-251.4,0.00044239,2]
[356864127,1743343666932,-493.46646673,0.00044756,120]
[356864128,1743343666955,-842.0,0.00045267,30]
[356864129,1743343666977,-150.0,0.00045369,120]
[356864130,1743343667000,-500.0,0.00045534,120]
[356864131,1743343667023,-842.0,0.00045734,30]
[356864132,1743343667046,-842.0,0.00046201,30]
[356864133,1743343667078,-156.87,0.000463,39]
[356864134,1743343667106,-156.87,0.000463,39]
[356864135,1743343667130,-150.0,0.000463,4]
[356864136,1743343667155,-500.0,0.00046548,120]
[356864137,1743343667178,-1908.086,0.00046575,120]
[356864138,1743343667202,-842.0,0.00046668,30]
[356864139,1743343667225,-357.89233568,0.00046668,30]
[356864140,1743343667248,-150.0,0.00046739,120]
[356864141,1743343667419,-842.0,0.00047134,30]
[356864142,1743343667442,-842.0,0.00047601,30]
[356864143,1743343667465,-842.0,0.00048068,30]
[356864144,1743343667489,-150.0,0.00048109,120]
[356864145,1743343667512,-250.0,0.00048571,120]
[356864146,1743343667536,-161.42,0.0004861,120]
[356864147,1743343667558,-1151.8,0.0004875,2]
[356864148,1743343667581,-1011.0,0.00049,2]
[356864149,1743343667603,-42606.66,0.00049,30]
[356864150,1743343667626,-999.99,0.00049,10]
[356864151,1743343667649,-827.31,0.00049,2]
[356864152,1743343667671,-150.99,0.00049,2]
[356864153,1743343667694,-437.02,0.00049,85]
[356864154,1743343670066,2707.85636044,0.0004399,30]
[356864155,1743343688776,-417.36072956,0.00049221,30]
[356864156,1743343688799,-737.66819803,0.000493,2]
[356864157,1743343688823,-173.4,0.00049529,2]
[356864158,1743343688846,-1910.74646766,0.0005,90]
[356864159,1743343688870,-159.06856237,0.0005,120]
[356864160,1743343695277,-251.4,0.00050036,2]
[356864161,1743343695301,-157.66,0.00050109,30]
[356864162,1743343695325,-746.89,0.00050172,120]
[356864163,1743343695349,-500.0,0.00050958,120]
[356864164,1743343706075,-1011.32519835,0.000518,2]